Cogmind - Beta 13 @@@ ROGUE MODE // 2024.02.28 @ 12:49:46 Player: Minty Result: Destroyed by C3-GIR(R) with Subdweller Laser Performance ------------- Evolutions (0) 0 Regions Visited (3) 600 Robots Destroyed (31) 155 Value Destroyed (910) 910 Prototype IDs (10) 200 Alien Tech Used (0) 0 Bonus (-88) -88 TOTAL SCORE: 1777 Bonus ------- Follower Combat Kills 75 Friendly Fire -163 Cogmind --------- Core Integrity 0/250 Matter 233/300 Energy 170/170 System Corruption 1% Temperature Cool (26) Movement Walking (130) Location -10/Subcaves Parts ------- > --- POWER (1) -------- Makeshift Power Source > --- PROPULSION (2) --- Cargo Legs > --- UTILITY (2+1) ---- Disposable Heat Sink Small Storage Unit ECM Suite (+) > --- WEAPON (2) ------- Subdweller Laser Battle Rifle > --- INVENTORY (8) ---- Makeshift Power Source Makeshift Leg Cobbler Unit Heavy Riot Gun Mining Laser Multitool Multitool Peak State ------------ > --- POWER ------------ Makeshift Power Source > --- PROPULSION ------- Cargo Legs > --- UTILITY ---------- Improved Heat Sink Small Storage Unit Improved Terrain Scanner ECM Suite > --- WEAPON ----------- Subdweller Laser Subdweller Machine Gun > --- INVENTORY -------- Light Treads Aluminum Leg Makeshift Leg Battle Rifle Subdweller Shrapnel Launcher Mining Laser [Rating: 33] Favorites ----------- Power Makeshift Power Source Engine Makeshift Power Source Propulsion Aluminum Leg Treads Light Treads Leg Aluminum Leg Wheel Subdweller Monowheel Utility Small Storage Unit Device ECM Suite Storage Small Storage Unit Weapon EM Shotgun Energy Gun EM Shotgun Energy Cannon Subdweller Beam Cannon Ballistic Gun Battle Rifle Launcher Subdweller Shrapnel Launcher Special Weapon Mining Laser Build | -11 -10 -10 -10 ------- Run | Yrd Mat Min Sub Slots Evolved . | . . . . Power . | . . . . Propulsion . | . . . . Utility . | . . . . Weapon . | . . . . Parts Attached 42 | . 3 12 27 Power 5 | . . 2 3 Engine 5 | . . 2 3 Core . | . . . . Reactor . | . . . . Propulsion 6 | . . 3 3 Treads 1 | . . . 1 Leg 4 | . . 3 1 Wheel 1 | . . . 1 Hover . | . . . . Flight . | . . . . Utility 6 | . 1 2 3 Device 6 | . 1 2 3 Storage . | . . . . Processor . | . . . . Hackware . | . . . . Protection . | . . . . Artifact . | . . . . Weapon 25 | . 2 5 18 Energy Gun 11 | . 2 4 5 Energy Cannon 1 | . . . 1 Ballistic Gun 9 | . . . 9 Ballistic Cannon . | . . . . Launcher 1 | . . . 1 Special Weapon 3 | . . 1 2 Impact Weapon . | . . . . Slashing Weapon . | . . . . Piercing Weapon . | . . . . Special Melee Weapon . | . . . . Unidentified Prototypes . | . . . . Corrupted Parts 1 | . . 1 . System Corruption 1 | . . 1 . Parts Lost 10 | . . 2 8 Power 1 | . . . 1 Propulsion . | . . . . Utility 3 | . . 1 2 Weapon 6 | . . 1 5 Highest Loss Streak 4 | . . 2 4 To Critical Strikes 1 | . . . 1 Average Slot Usage (%) 93 | . 97 99 88 Engine 12 | . 14 14 11 Treads 1 | . . . 1 Leg 18 | . 28 28 10 Wheel 1 | . . . 2 Device 20 | . 12 13 25 Storage 12 | . 14 14 11 Energy Gun 16 | . 27 27 7 Ballistic Gun 8 | . . . 15 Naked Turns . | . . . . Heaviest Build 23 | 11 15 17 23 Greatest Support 55 | 20 20 25 55 Greatest Overweight (x) . | . . . . Average Overweight (x) . | . . . . Largest Inventory Capacity 8 | . 8 8 8 Average Capacity 8 | . 8 8 8 Most Carried 8 | . 8 8 8 Average Carried 7 | . 7 7 7 Final Capacity 8 | 8 8 8 8 Final Carried 8 | 6 8 8 8 Class Distribution -------------------- 71% | Mutant 28% | Scavenger-Mutant Dominant Class ---------------- Mutant | -10/Materials Mutant | -10/Mines Mutant | -10/Subcaves Resources | -11 -10 -10 -10 ----------- Run | Yrd Mat Min Sub Matter Collected 788 | 200 22 88 478 Remotely . | . . . . Salvage Created 1283 | . 22 805 456 Parts 77 | . 3 40 34 Haulers Intercepted . | . . . . Recyclers Shooed . | . . . . Parts Field Recycled . | . . . . Retrieved Matter . | . . . . Parts Self-Destructed 2 | . . . 2 Prevented . | . . . . Kills | -11 -10 -10 -10 ------- Run | Yrd Mat Min Sub Combat Hostiles Destroyed 24 | . . 15 9 Guns 20 | . . 14 6 Cannons 2 | . . . 2 AOE 2 | . . 1 1 Classes Destroyed 9 | . 1 5 3 Worker 2 | . 1 1 . Builder 1 | . . 1 . Tunneler 3 | . . 3 . Recycler 1 | . . 1 . Swarmer 3 | . . 3 . Grunt 12 | . . 12 . Artisan 4 | . . . 4 Cobbler 1 | . . . 1 Subdweller 9 | . . . 9 Best Kill Streak 4 | . 1 4 3 Combat Bots Only 4 | . . 4 3 Max Kills in Single Turn 2 | . 1 2 1 Gunslinging . | . . . . Exploded 1 | . . 1 1 Melee . | . . . . Uniques/NPCs Destroyed . | . . . . Combat | -11 -10 -10 -10 -------- Run | Yrd Mat Min Sub Hostile Shots Fired 133 | . 3 49 81 Missed 44 | . 1 20 23 Damage Taken 1755 | . 22 348 1385 Core 252 | . . 21 231 Absorbed by Shields . | . . . . Core Remaining (%) 100 | 100 . . . Volleys Fired 138 | . 1 38 99 Largest 2 | . 2 2 2 Hottest 105 | . 90 100 105 Shots Fired 245 | . 2 73 170 Gun 206 | . 2 71 133 Cannon 13 | . . . 13 Launcher 2 | . . . 2 Special 24 | . . 2 22 Kinetic 84 | . . . 84 Thermal 70 | . . 2 68 Explosive . | . . . . Electromagnetic 91 | . 2 71 18 Robot Hit Streak 17 | . 4 17 13 Robot Miss Streak 6 | . . 6 3 Penetration Max . | . . . . Secondary Targets 4 | . . 4 . Max Gunslinging Chain 1 | . . 1 . Shots Hit Robots 160 | . 2 54 104 Core Hits 75 | . 2 46 27 Critical Kills . | . . . . Critical Parts Destroyed . | . . . . Critical Strikes 2 | . . . 2 Destroy 2 | . . . 2 Melee Attacks . | . . . . Impact . | . . . . Slashing . | . . . . Piercing . | . . . . Sneak Attacks . | . . . . Combat Hostiles . | . . . . Follow-up Attacks . | . . . . Damage Inflicted 2653 | . 40 860 1753 Guns 2181 | . 40 804 1337 Cannons 240 | . . . 240 Explosions 219 | . . 43 176 Melee . | . . . . Ramming 13 | . . 13 . Kinetic 892 | . . . 892 Thermal 754 | . . 43 711 Explosive . | . . . . Electromagnetic 994 | . 40 804 150 Impact . | . . . . Slashing . | . . . . Piercing . | . . . . Highest Corruption 1 | . . 1 1 Average Corruption 1 | . . 1 1 Corruption Purged . | . . . . Corruption Blocked . | . . . . Effects 9 | . . . 9 Message Errors 2 | . . . 2 Matter Fused 2 | . . . 2 Heat Flow Errors 2 | . . . 2 Misfires 2 | . . . 2 Alerts 1 | . . . 1 Overload Shots . | . . . . Overflow Damage 23 | . . 23 . Projectiles . | . . . . Explosions 23 | . . 23 . Melee . | . . . . Knockbacks . | . . . . Impact . | . . . . Kinetic . | . . . . Secondary . | . . . . Self-Inflicted Damage 61 | . . . 61 Shots 1 | . . . 1 Rammed . | . . . . Targets Rammed 4 | . . 4 . Kicked 4 | . . 4 . Crushed . | . . . . Highest Temperature 254 | . 30 162 254 Average Temperature 56 | . 18 48 65 Received Heat Transfer 727 | . 12 168 547 Siege Activations . | . . . . Robots Corrupted . | . . . . Combat Hostiles . | . . . . Parts Fried 1 | . . 1 . Impact Corruptions . | . . . . Robots Melted . | . . . . Combat Hostiles . | . . . . Parts Melted 2 | . . 1 1 Heat Transferred 958 | . . 50 908 Parts Sabotaged . | . . . . Parts Stolen . | . . . . Parts Stripped . | . . . . Power Chain Reactions 2 | . . 1 1 Alert | -11 -10 -10 -10 ------- Run | Yrd Mat Min Sub Peak Influence 261 | . 20 261 . Initial 7 | . . 7 . Average 102 | . 6 122 . Maximum Alert Level 1 | . . 1 . Low Security (%) 90 | . 100 88 . Level 1 9 | . . 11 . Level 2 . | . . . . Level 3 . | . . . . Level 4 . | . . . . Level 5 . | . . . . High Security . | . . . . Max Security . | . . . . Squads Dispatched 4 | . 2 2 . Investigation 1 | . 1 . . Extermination . | . . . . Reinforcement 1 | . 1 . . Assault 2 | . . 2 . Garrison . | . . . . Intercept . | . . . . Searches Triggered . | . . . . Construction Impeded . | . . . . Haulers Reinforced . | . . . . Active Scanning Responses . | . . . . Cargo Convoy Interrupts . | . . . . Stealth | -11 -10 -10 -10 --------- Run | Yrd Mat Min Sub Distress Signals . | . . . . Communications Jammed . | . . . . Distress Signals . | . . . . Times Spotted 41 | . 2 27 12 Peak Tracking Total 4 | . 2 4 2 Tactical Retreats 3 | . . 2 1 Traps | -11 -10 -10 -10 ------- Run | Yrd Mat Min Sub Traps Triggered . | . . . . Indirectly . | . . . . Trap Hack Attempts . | . . . . Triggered . | . . . . Disarmed . | . . . . Reprogrammed . | . . . . Reused . | . . . . Traps Extracted . | . . . . Installed . | . . . . Triggered . | . . . . Machines | -11 -10 -10 -10 ---------- Run | Yrd Mat Min Sub Machines Disabled 1 | . . . 1 Max in Single Turn 1 | . . . 1 Machines Repaired . | . . . . Machines Dismantled . | . . . . Machines Sabotaged . | . . . . Overloaded Fab Kills . | . . . . Hacking | -11 -10 -10 -10 --------- Run | Yrd Mat Min Sub Machines Accessed 3 | . 1 . 2 Terminals 1 | . 1 . . Fabricators . | . . . . Repair Stations . | . . . . Recycling Units . | . . . . Scanalyzers . | . . . . Garrison Access . | . . . . Total Hacks 13 | . 3 . 10 Successful 10 | . . . 10 Failed 3 | . 3 . . Catastrophic 1 | . 1 . . Database Lockouts . | . . . . Manual . | . . . . Terminals 3 | . 3 . . Fabricators . | . . . . Repair Stations . | . . . . Recycling Units . | . . . . Scanalyzers . | . . . . Garrison Access . | . . . . Terminal Hacks 10 | . . . 10 Record 9 | . . . 9 Derelict Proto ID Bank 1 | . . . 1 Fabricator Hacks . | . . . . Repair Station Hacks . | . . . . Recycling Unit Hacks . | . . . . Scanalyzer . | . . . . Garrison Access Hacks . | . . . . Unauthorized Hacks . | . . . . Terminals . | . . . . Fabricators . | . . . . Repair Stations . | . . . . Recycling Units . | . . . . Scanalyzers . | . . . . Garrison Access . | . . . . Data Cores Recovered . | . . . . Used . | . . . . Hacking Detections 1 | . 1 . . Full Trace Events 1 | . 1 . . Feedback Events . | . . . . Feedback Blocked . | . . . . Robot Schematics Acquired . | . . . . Robots Built . | . . . . Authchips . | . . . . Time . | . . . . Total Robot Build Rating . | . . . . Part Schematics Acquired . | . . . . Parts Built . | . . . . Authchips . | . . . . Time . | . . . . Total Part Build Rating . | . . . . Parts Repaired . | . . . . Time . | . . . . Parts Recycled . | . . . . Recycled Matter . | . . . . Retrieved Matter . | . . . . Retrieved Components . | . . . . Parts Scanalyzed . | . . . . Part Schematics Acquired . | . . . . Parts Damaged . | . . . . Bothacking | -11 -10 -10 -10 ------------ Run | Yrd Mat Min Sub Used RIF Installer . | . . . . Robots Hacked . | . . . . Non-combat . | . . . . Combat . | . . . . Robot Hacks Applied . | . . . . Relay Couplers Released . | . . . . Fabnet Peak Effective % . | . . . . Robots Rewired . | . . . . Allies Hacked . | . . . . Hacks Repelled . | . . . . Allies | -11 -10 -10 -10 -------- Run | Yrd Mat Min Sub Total Allies 4 | . . 4 . Largest Group 3 | . . 3 . Highest-Rated Group 72 | . . 72 . Highest-Rated Ally 31 | . . 31 . Total Orders . | . . . . Ally Attacks 32 | . . 32 . Total Damage 399 | . . 399 . Kills 3 | . . 3 . Allies Corrupted . | . . . . Allies Melted . | . . . . Intel | -11 -10 -10 -10 ------- Run | Yrd Mat Min Sub Robot Analysis Total . | . . . . Derelict Logs Recovered 4 | . . 3 1 Drone Launches . | . . . . Drone Recoveries . | . . . . Exploration | -11 -10 -10 -10 ------------- Run | Yrd Mat Min Sub Turns Passed 2645 | . 212 1013 1420 Spaces Moved 1675 | 1 135 705 834 Core . | . . . . Treads . | . . . . Legs 1518 | 1 135 705 677 Wheels 157 | . . . 157 Hover . | . . . . Flight . | . . . . Fastest Speed 110 | 120 120 120 110 Average Speed 122 | 120 120 120 125 Slowest Speed 130 | 120 120 120 130 Overloaded Moves . | . . . . Propulsion Burnouts . | . . . . Robots Hopped . | . . . . Cave-ins Triggered . | . . . . Exploration Rate (%) 47 | 1 28 97 64 Regions Visited 3 Branch Regions 2 Pre-discovered Areas 1 | . . 1 . Known Exits Taken . | . . . . Unknown Exits Taken 3 | 1 1 1 . Scrap Searched 3 | . . 1 2 Spaces Dug . | . . . . Terrain Destroyed 47 | . . 6 41 Melee . | . . . . Projectile 1 | . . . 1 AOE 46 | . . 6 40 Terrain Rammed . | . . . . Walls Destroyed . | . . . . Machines Disabled . | . . . . Actions | -11 -10 -10 -10 --------- Run | Yrd Mat Min Sub Total 1988 | . 185 797 1006 Wait 54 | . 32 21 1 Move 1672 | . 134 704 834 Hop . | . . . . Pick Up 35 | . 7 8 20 Fast Attach 12 | . 3 2 7 Attach 11 | . . 2 9 Detach 3 | . 1 . 2 Swap 19 | . . 8 11 Drop 40 | . 7 10 23 Fire 138 | . 1 38 99 Melee . | . . . . Ram . | . . . . Kick 4 | . . 4 . Crush . | . . . . Escape Stasis . | . . . . Rewire . | . . . . Trap . | . . . . Miscellaneous . | . . . . Route ------- -11/Scrapyard -10/Materials -10/Mines (discovered 3 exits: [*Mat x2] / *Sub) -10/Subcaves (discovered 1 exit: [*Mat]) History --------- Turn | Location | Event 1 | -11/Scrapyard | Discovered new exit (range 0) 1 | -11/Scrapyard | Entered Materials 192 | -10/Materials | Discovered new exit (range 15) 213 | -10/Materials | Entered Mines 322 | -10/Mines | Build established: Mutant 342 | -10/Mines | Discovered new exit (range 2) 343 | -10/Mines | Met a Derelict testing a Signal Generator 351 | -10/Mines | Found Signal Generator 364 | -10/Mines | Learned Materials security intel 437 | -10/Mines | Learned location of 1 exit from Materials 653 | -10/Mines | Received a Mining Laser from a helpful Derelict 850 | -10/Mines | Discovered new exit (range 10) 963 | -10/Mines | Learned location of Zion (-7) 1210 | -10/Mines | Build established: Scavenger-Mutant 1222 | -10/Mines | Discovered new exit (range 3) 1226 | -10/Mines | Entered Subcaves 1276 | -10/Subcaves | Core integrity fell below 50% 1298 | -10/Subcaves | Lost 4 parts (1p3w) 1352 | -10/Subcaves | Visited Clippyterm 1473 | -10/Subcaves | Visited 4L-MR0's lab 1507 | -10/Subcaves | Found Cargo Legs 1508 | -10/Subcaves | Attached Cargo Legs, gained temporary slots: Utility x2 1706 | -10/Subcaves | Lost 3 parts (1u2w) 2025 | -10/Subcaves | Build established: Mutant 2141 | -10/Subcaves | Discovered new exit (range 6) 2556 | -10/Subcaves | Learned location of 1 exit from Materials 2643 | -10/Subcaves | Core integrity fell below 20% 2646 | -10/Subcaves | Destroyed by C3-GIR(R) with Subdweller Laser Last Messages --------------- 02249_ System corrupted: Battle Rifle misfires. 02398_ Chain reaction triggered in Sub. Power Source. 02398_ 5L-624(R) destroyed. 02410_ D2-J1M(R) destroyed. 02413_ Acquired 44 matter. 02417_ L6-4QD(R) affixes Scrap Shield Fragment to Scrap Shield. 02426_ L6-4QD(R) destroyed. 02431_ Dropped Hvy. Riot Gun. 02431_ Dropped Sub. Machine Gun. 02437_ Acquired Sub. Laser. 02439_ Acquired 29 matter. 02443_ Acquired Hvy. Riot Gun. 02529_ XO-SJ4(R) suffers critical hit (Destroy). 02556_ Acquired derelict log, extracted data. Data stored: Materials exits (x1). 02568_ System corrupted: IFF burst signal emitted. 02600_ System corrupted: Heat flow error (+119). 02620_ EA-9LJ(u) cries out in pain. 02620_ EA-9LJ(u) destroyed. 02624_ C3-GIR(R): "SUBHATE!" Map ----- +----------------------------------------------------+ | ?????????????????????????????????????????????????? | | ?????????????????????????????????????????????????? | | ?????????????????????????????????????????????????? | | ?????????????????????????????????????????????????? | | ?????????????????????????????????????????????????? | | ?????????????????????????????????????????????????? | | ?????????????????????????????????????????????????? | | ?????????????????????????????????????????????????? | | ?????????????????????????????????????????????????? | | ?????????????????????????????????????????????????? | | ?????????????????????????????###?????????????????? | | ????????????????????????????? ?????????????????? | | ??????????????????????? ????? ????????????????? | | ??????????????????????? #?### ????????????????? | | ???????????????????????? ## ????????????????? | | ???????????????????????? ?????????????????? | | ???????????????????????? ??????????????????? | | ????????????????????????? #??????????????????? | | ?????????????###????????? #??????????????????? | | ?????????????# ##???????# ##?????????????????? | | ?????????????# #??????## ##????????????????? | | ?????????????# #?????## ##???????????????? | | ?????????????# #????## #???? ??????? | | ?????????????# ##??## %= ## #?????? | | ??????????????# ##?# * #?????? | | ???????????????# ###R @ #????## | | ???????????##### ### ????#" | | ?????###??## ###?## #### ????#" | | ?????# ?## #????# ##?????? ?????#" | | ?????# ## """" #????# ##????????????????#" | | ??????# "" " #???# #?????????????????#" | | ??????## "#### ##???# #?????????????????## | | ???????#" ###??####?#??# #??????????????????? | | ???????#" ##????### #?? ??????????????????? | | ???????#" ##?? #?? #?????????????????? | | ???????#" #?? ## #?????????????????? | | ??????##" #? #?????????????????? | | ??????# ### ##?????????????????? | | ??????# ## ########??????????????????? | | ??????## #??????????????????????????? | | ???????### #?????????????????????????????? | | ?????????# ##????????????????????????????? | | ?????????# #????????????????????????????? | | ?????????# """ #???????????????????????????? | | ?????????## """## ##???????????????????????????? | | ??????????# """#####????????????????????????????? | | ?????###### ###?????????????????????????????? | | ????## ##????????????????????????????? | | ????# #????????????????????????????? | | ????# #????????????????????????????? | +----------------------------------------------------+ Best States ------------- Heat Dissipation 39 Coolant Potential 50 Energy Generation 15 Energy Capacity 250 Matter Stores 300 Matter Capacity 300 Sight Range 16 Robot Scan Range 14 Terrain Scan Range 16 Terrain Scan Density 10 ECM Strength 1 Evasion (%) 55 Recoil Reduction 1 Item Schematics ----------------- None Robot Schematics ------------------ None Fabricated ------------ Nothing Alien Tech Used ----------------- None Achievements -------------- None Challenges ------------ None Game ------ Seed MultinovaMomentumLog Manual? 0 Play Time 00:15:52 Cumulative 677.9 hours Start 2024.02.28 @ 12:33:56 End 2024.02.28 @ 12:49:46 Sessions 1 Manual Loads 0 Difficulty Rogue Special Mode None Game No. 693 Rogue 418 Adventurer 123 Explorer 152 Win Type - Total 25 Types 19/0/4/1/0/0/0/1/0 Lore% 80 Gallery% 91 Achievement% 76 Wizard Run 0 Options --------- Layout 0 ASCII 0 Keyboard 1 Movement Numpad Keybinds 0 Fullscreen 2 Font 18/SmallcapsGlow Map View 76x50 Zoom Use 0% Tactical HUD 1 Map Filters NONE Filters NONE Steam 1 RUN: 21a55d1b-e04c-4201-90c3-4780d99b9c89